Cogmind - Beta 10.2 @@@ ROGUE MODE // 2020.12.07 @ 08:04:23 // Halloween2020/ForbiddenLore Player: Coronach Result: Destroyed by N8-G1N(z) with Zionite Laser-S Performance ------------- Evolutions (3) 1500 Regions Visited (11) 2200 Robots Destroyed (150) 750 Value Destroyed (3060) 3060 Prototype IDs (36) 720 Alien Tech Used (0) 0 Bonus (668) 668 TOTAL SCORE: 8898 Bonus ------- Follower Combat Kills 68 Aligned with FarCom 300 Met Imprinter 300 Cogmind --------- Core Integrity 0/700 Matter 290/300 Energy 84/100 System Corruption 0% Temperature Cool (9) Movement Core (50) Location -7/Deep Caves Parts ------- > --- POWER (1) -------- (None) > --- PROPULSION (3) --- (None) > --- UTILITY (7) ------ (None) > --- WEAPON (2) ------- Makeshift Axe > --- INVENTORY (4) ---- Latent Energy Streamer Molecular Deconstructor Peak State ------------ > --- POWER ------------ Improved Deuterium Engine > --- PROPULSION ------- Makeshift Leg Makeshift Leg Makeshift Leg > --- UTILITY ---------- Improved Heat Sink Compact Battery Advanced Signal Interpreter Improved Weapon Shielding Makeshift Armor Plating Makeshift Hacking Suite Phasing AFG > --- WEAPON ----------- Molecular Deconstructor > --- INVENTORY -------- Tactical Coordination Suite Makeshift System Restoration Module Latent Energy Streamer [Rating: 68] Favorites ----------- Power Light Angular Momentum Engine Engine Light Angular Momentum Engine Power Core Light Nuclear Core Propulsion Armored Treads Treads Armored Treads Leg Makeshift Leg Wheel Compact Wheel Utility Advanced Signal Interpreter Device Structural Scanner Storage Humpback Processor Advanced Signal Interpreter Hackware Hacking Suite Protection Makeshift Armor Plating Weapon Heavy EM Shotgun Energy Gun Heavy EM Shotgun Energy Cannon Latent Energy Streamer Ballistic Gun Heavy Battle Rifle Ballistic Cannon Bore Cannon Launcher Advanced EMP Blaster Special Weapon Molecular Deconstructor Impact Weapon Great Maul Slashing Weapon Great Axe Build | -11 -10 -10 -10 -9 -8 -8 -7 -7 -7 -7 -7 ------- Run | Scr Mat Min Exi Min Mat Sto Fac Low Low Zio Dee Slots Evolved 6 | . . . . . 4 . 2 . . . . Power . | . . . . . . . . . . . . Propulsion 1 | . . . . . . . 1 . . . . Utility 5 | . . . . . 4 . 1 . . . . Weapon . | . . . . . . . . . . . . Parts Attached 299 | 3 35 4 2 1 24 61 56 14 1 93 5 Power 15 | . 2 . . 1 1 1 3 1 . 5 1 Engine 14 | . 2 . . 1 1 . 3 1 . 5 1 Core 1 | . . . . . . 1 . . . . . Reactor . | . . . . . . . . . . . . Propulsion 40 | 2 5 . . . 3 3 3 . . 23 1 Treads 14 | 1 3 . . . 2 2 2 . . 4 . Leg 20 | . . . . . . . . . . 19 1 Wheel 6 | 1 2 . . . 1 1 1 . . . . Hover . | . . . . . . . . . . . . Flight . | . . . . . . . . . . . . Utility 130 | 1 3 . 2 . 13 24 33 9 . 43 2 Device 74 | . . . . . 6 16 22 6 . 23 1 Storage 13 | 1 3 . 2 . 1 . . . . 6 . Processor 4 | . . . . . 2 . . . . 2 . Hackware 3 | . . . . . . 1 . . . 2 . Protection 36 | . . . . . 4 7 11 3 . 10 1 Artifact . | . . . . . . . . . . . . Weapon 114 | . 25 4 . . 7 33 17 4 1 22 1 Energy Gun 41 | . 8 1 . . 3 19 3 . . 7 . Energy Cannon 2 | . . . . . . . . . . 2 . Ballistic Gun 31 | . 11 3 . . 3 8 5 1 . . . Ballistic Cannon 6 | . . . . . . . . . . 6 . Launcher 8 | . . . . . . 1 3 1 . 3 . Special Weapon 4 | . 1 . . . 1 . . 1 . 1 . Impact Weapon 11 | . 5 . . . . 5 1 . . . . Slashing Weapon 11 | . . . . . . . 5 1 1 3 1 Piercing Weapon . | . . . . . . . . . . . . Special Melee Weapon . | . . . . . . . . . . . . Unidentified Prototypes 6 | . . . . . . 4 . 1 . 1 . Parts Lost 32 | . . . . . 2 2 4 . . 15 9 Power 5 | . . . . . . . 1 . . 2 2 Propulsion 11 | . . . . . 1 . 2 . . 4 4 Utility 12 | . . . . . 1 1 1 . . 6 3 Weapon 4 | . . . . . . 1 . . . 3 . Highest Loss Streak 9 | . . . . . 2 2 3 . . 3 9 Average Slot Usage (%) 93 | . 100 100 100 100 88 89 91 91 92 92 98 Engine 7 | . 14 14 14 14 9 2 6 7 7 6 6 Core 1 | . . . . . . 6 . . . . . Treads 13 | . 14 14 14 14 9 9 16 23 23 11 . Leg 4 | . . . . . . . . . . 11 22 Wheel 5 | . 13 14 14 14 8 9 5 . . . . Device 14 | . . . . . 19 19 20 22 23 13 15 Storage 12 | . 28 28 28 28 9 9 7 7 7 8 15 Processor 7 | . . . . . 9 9 7 7 7 10 14 Hackware 5 | . . . . . . 7 7 7 7 6 . Protection 3 | . . . . . 7 . 2 . . 7 5 Energy Gun 6 | . 12 10 14 14 12 11 3 . . 2 . Ballistic Gun 3 | . 9 17 14 14 2 4 3 4 . . . Launcher 1 | . . . . . . . 1 6 7 2 . Special Weapon 1 | . 3 . . . 1 . . . . 2 . Slashing Weapon 2 | . . . . . . . 5 1 6 3 15 Naked Turns 1 | . . . . . . . . . . . 1 Heaviest Build 118 | 15 45 45 77 77 100 99 112 118 102 117 71 Greatest Support 84 | 16 23 23 16 23 23 23 60 60 60 84 60 Greatest Overweight (x) 6 | . 2 2 4 4 6 6 5 1 1 1 3 Average Overweight (x) 1 | . 1 1 2 3 5 5 1 1 1 . 1 Largest Inventory Capacity 40 | 8 16 16 20 20 40 24 24 24 24 24 18 Average Capacity 20 | 6 10 16 16 20 24 24 24 24 24 17 17 Most Carried 24 | 6 16 16 17 20 23 24 24 24 24 24 18 Average Carried 18 | 4 9 15 15 18 16 22 22 22 23 16 17 Final Capacity 24 | 8 16 16 20 20 24 24 24 24 24 18 4 Final Carried 24 | 4 16 16 16 20 23 23 23 22 24 18 3 Class Distribution -------------------- 25% | Hauler-Assassin 21% | Scavenger-Mutant 15% | Mutant 14% | Commander-Mutant 13% | Hauler-Mutant 5% | Hauler-Skirmisher 4% | Scavenger-Skirmisher Dominant Class ---------------- Mutant | -10/Materials Mutant | -10/Mines Mutant | -10/Exiles Hauler-Mutant | -9/Mines Hauler-Mutant | -8/Materials Commander-Mutant | -8/Storage Hauler-Assassin | -7/Factory Hauler-Skirmisher | -7/Lower Caves Hauler-Assassin | -7/Lower Caves Scavenger-Mutant | -7/Zion Scavenger-Mutant | -7/Deep Caves Resources | -11 -10 -10 -10 -9 -8 -8 -7 -7 -7 -7 -7 ----------- Run | Scr Mat Min Exi Min Mat Sto Fac Low Low Zio Dee Matter Collected 4594 | 248 624 112 . 36 284 656 617 313 113 1591 . Remotely . | . . . . . . . . . . . . Salvage Created 4753 | 89 428 101 . . 407 603 450 210 . 2465 . Parts 336 | 3 35 4 . . 16 39 33 3 . 203 . Haulers Intercepted 1 | . . . . . . 1 . . . . . Recyclers Shooed 6 | 1 . . . . 3 1 1 . . . . Parts Field Recycled . | . . . . . . . . . . . . Retrieved Matter . | . . . . . . . . . . . . Parts Self-Destructed 1 | . . . . . . . . . 1 . . Prevented 2 | . . . . . . . . 2 . . . Kills | -11 -10 -10 -10 -9 -8 -8 -7 -7 -7 -7 -7 ------- Run | Scr Mat Min Exi Min Mat Sto Fac Low Low Zio Dee Combat Hostiles Destroyed 48 | . 13 2 . . 4 8 8 4 . 9 . Melee 2 | . . . . . . . 2 . . . . Guns 32 | . 13 2 . . 3 8 5 . . 1 . Cannons 1 | . . . . . . . . . . 1 . AOE 9 | . . . . . 1 . 1 4 . 3 . Classes Destroyed 14 | 1 3 . . . 1 3 1 . . 5 . Builder 1 | . . . . . . 1 . . . . . Hauler 1 | . . . . . . 1 . . . . . Recycler 5 | 1 . . . . 2 2 . . . . . Watcher 6 | . 3 . . . 1 1 1 . . . . Swarmer 9 | . 6 . . . . 3 . . . . . Grunt 14 | . 7 2 . . 1 . . 4 . . . Sentry 8 | . . . . . 3 4 1 . . . . Hunter 3 | . . . . . . 1 2 . . . . Programmer 5 | . . . . . . . 5 . . . . Zionite 88 | . . . . . . . . . . 88 . Tinkerer 5 | . . . . . . . . . . 5 . Surgeon 1 | . . . . . . . . . . 1 . Thug 1 | . . . . . . . . . . 1 . Butcher 2 | . . . . . . . . . . 2 . Mutant 5 | . . . . . . . . . . 5 . Best Kill Streak 13 | 1 3 2 . . 2 4 1 4 . 13 . Combat Bots Only 4 | . 3 2 . . 2 3 1 4 . 4 . Max Kills in Single Turn 3 | 1 1 1 . . 1 1 1 2 . 3 . Gunslinging . | . . . . . . . . . . . . Exploded 2 | . . . . . 1 . 1 2 . 2 . Melee 1 | . . . . . . . 1 . . . . Uniques/NPCs Destroyed 1 | . . . . . . . . . . 1 . Imprinter (-7/Zion) Combat | -11 -10 -10 -10 -9 -8 -8 -7 -7 -7 -7 -7 -------- Run | Scr Mat Min Exi Min Mat Sto Fac Low Low Zio Dee Damage Taken 6851 | . 486 219 . 38 198 597 1053 58 . 3353 849 Core 957 | . 98 . . 23 18 112 117 13 . 465 111 Absorbed by Shields . | . . . . . . . . . . . . Core Remaining (%) 75 | 100 . . . 51 . 76 . . . . . Volleys Fired 309 | 3 57 8 . 2 25 29 23 3 . 159 . Largest 2 | 2 2 2 . 2 2 2 2 2 . 2 . Hottest 140 | 40 140 90 . 73 100 100 105 69 . 117 . Shots Fired 509 | 6 102 16 . 4 46 58 44 6 . 227 . Gun 387 | 6 90 16 . 4 43 58 40 3 . 127 . Cannon 14 | . . . . . . . . . . 14 . Launcher 31 | . . . . . . . 4 3 . 24 . Special 77 | . 12 . . . 3 . . . . 62 . Kinetic 184 | 6 84 12 . 2 18 32 15 3 . 12 . Thermal 69 | . 12 . . . 3 . 19 . . 35 . Explosive . | . . . . . . . . . . . . Electromagnetic 194 | . 6 4 . 2 25 26 10 3 . 118 . Robot Hit Streak 18 | 2 18 6 . 2 6 10 8 3 . 11 . Robot Miss Streak 4 | 1 4 1 . 1 3 2 2 1 . 4 . Penetration Max 1 | . . . . . . . . . . 1 . Secondary Targets 8 | . 1 1 . . . . . . . 6 . Max Gunslinging Chain 1 | . 1 1 . . . . . . . 1 . Shots Hit Robots 358 | 4 58 13 . 2 32 42 38 2 . 167 . Core Hits 166 | 2 24 6 . . 15 20 16 5 . 78 . Critical Hits 11 | . . . . . 1 1 . . . 9 . Critical Kills 2 | . . . . . 1 . . . . 1 . Critical Parts Destroyed 8 | . . . . . . 1 . . . 7 . Melee Attacks 73 | . 2 . . . . 16 30 1 9 15 . Impact 20 | . 2 . . . . 16 2 . . . . Slashing 53 | . . . . . . . 28 1 9 15 . Piercing . | . . . . . . . . . . . . Sneak Attacks 2 | . . . . . . . 1 . . 1 . Combat Hostiles . | . . . . . . . . . . . . Follow-up Attacks 1 | . . . . . . . . . . 1 . Damage Inflicted 7115 | 35 641 101 . 44 586 667 1164 272 . 3605 . Guns 4118 | 35 641 101 . 44 495 667 722 . . 1413 . Cannons 270 | . . . . . . . . . . 270 . Explosions 1757 | . . . . . 91 . 104 272 . 1290 . Melee 970 | . . . . . . . 338 . . 632 . Ramming . | . . . . . . . . . . . . Kinetic 1840 | 35 562 74 . 20 265 373 248 . . 263 . Thermal 1179 | . . . . . 91 . 354 42 . 692 . Explosive . | . . . . . . . . . . . . Electromagnetic 3126 | . 79 27 . 24 230 294 224 230 . 2018 . Impact . | . . . . . . . . . . . . Slashing 970 | . . . . . . . 338 . . 632 . Piercing . | . . . . . . . . . . . . Highest Corruption 2 | . . . . . . 1 2 . . 2 1 Average Corruption 1 | . . . . . . 1 1 . . 1 1 Corruption Purged 10 | . . . . . . . 5 . . 4 1 Effects 16 | . . . . . . 1 6 . . 9 . Message Errors 6 | . . . . . . . 2 . . 4 . Heat Flow Errors 1 | . . . . . . . 1 . . . . Energy Discharges 3 | . . . . . . . 1 . . 2 . Data Loss (minor) 1 | . . . . . . 1 . . . . . Targeting Errors 5 | . . . . . . . 2 . . 3 . Overload Shots . | . . . . . . . . . . . . Overflow Damage 32 | . . . . . . . 3 15 . 14 . Projectiles . | . . . . . . . . . . . . Explosions 29 | . . . . . . . . 15 . 14 . Melee 3 | . . . . . . . 3 . . . . Knockbacks 1 | . . . . . . . . . . 1 . Impact . | . . . . . . . . . . . . Kinetic 1 | . . . . . . . . . . 1 . Secondary . | . . . . . . . . . . . . Self-Inflicted Damage 277 | . . . . . . . 58 25 . 194 . Shots 13 | . . . . . . . 3 2 . 8 . Rammed 1 | . . . . . . 1 . . . . . Targets Rammed 1 | . . . . . . 1 . . . . . Kicked . | . . . . . . . . . . . . Crushed . | . . . . . . . . . . . . Highest Temperature 243 | 6 60 99 . 30 117 72 226 81 . 243 . Average Temperature 39 | 6 18 70 . 16 37 20 89 43 . 47 . Received Heat Transfer 1224 | . 159 126 . . 99 81 30 18 . 441 270 Siege Activations . | . . . . . . . . . . . . Robots Corrupted 3 | . 1 . . . . . . . . 2 . Combat Hostiles 2 | . . . . . . . . . . 2 . Parts Fried 16 | . 3 . . . . 2 1 . . 10 . Impact Corruptions . | . . . . . . . . . . . . Robots Melted . | . . . . . . . . . . . . Combat Hostiles . | . . . . . . . . . . . . Parts Melted 7 | . . . . . . . 1 . . 6 . Heat Transferred 1761 | . . . . . 50 . 592 50 . 1069 . Parts Sabotaged . | . . . . . . . . . . . . Parts Stolen . | . . . . . . . . . . . . Parts Stripped . | . . . . . . . . . . . . Power Chain Reactions 11 | . . . . . 2 . . 1 . 8 . Missiles Intercepted . | . . . . . . . . . . . . Latent Energy Used 128 | . . . . . . . . . . 128 . LE Corruption 2 | . . . . . . . . . . 2 . Alert | -11 -10 -10 -10 -9 -8 -8 -7 -7 -7 -7 -7 ------- Run | Scr Mat Min Exi Min Mat Sto Fac Low Low Zio Dee Peak Influence 328 | 5 240 52 . 30 141 328 141 . . . . Initial 112 | . 3 2 . . 11 31 112 . . . . Average 109 | 3 99 48 . 14 57 193 48 . . . . Maximum Alert Level 1 | . 1 . . . . 1 . . . . . Low Security (%) 77 | 100 93 100 . 100 100 40 100 . . . . Level 1 22 | . 6 . . . . 60 . . . . . Level 2 . | . . . . . . . . . . . . Level 3 . | . . . . . . . . . . . . Level 4 . | . . . . . . . . . . . . Level 5 . | . . . . . . . . . . . . High Security . | . . . . . . . . . . . . Max Security . | . . . . . . . . . . . . Squads Dispatched 7 | . 1 . . . . 2 4 . . . . Investigation 2 | . 1 . . . . 1 . . . . . Extermination 4 | . . . . . . . 4 . . . . Reinforcement 1 | . . . . . . 1 . . . . . Assault . | . . . . . . . . . . . . Garrison . | . . . . . . . . . . . . Intercept . | . . . . . . . . . . . . Construction Impeded . | . . . . . . . . . . . . Haulers Reinforced . | . . . . . . . . . . . . Stealth | -11 -10 -10 -10 -9 -8 -8 -7 -7 -7 -7 -7 --------- Run | Scr Mat Min Exi Min Mat Sto Fac Low Low Zio Dee Distress Signals 7 | . 1 . . 1 . 4 . . 1 . . Communications Jammed . | . . . . . . . . . . . . Distress Signals . | . . . . . . . . . . . . Times Spotted 202 | . 24 2 . 16 7 32 10 3 . 105 3 Peak Tracking Total 10 | . 4 2 . 10 3 5 2 4 . 8 3 Tactical Retreats 17 | . 3 . . 3 1 6 . . . 4 . Traps | -11 -10 -10 -10 -9 -8 -8 -7 -7 -7 -7 -7 ------- Run | Scr Mat Min Exi Min Mat Sto Fac Low Low Zio Dee Traps Triggered 3 | . . . . . 1 1 1 . . . . Indirectly . | . . . . . . . . . . . . Trap Hack Attempts . | . . . . . . . . . . . . Triggered . | . . . . . . . . . . . . Disarmed 3 | . 3 . . . . . . . . . . Reprogrammed . | . . . . . . . . . . . . Reused . | . . . . . . . . . . . . Traps Extracted . | . . . . . . . . . . . . Installed . | . . . . . . . . . . . . Triggered 3 | . 1 . . . . . . 1 1 . . Machines | -11 -10 -10 -10 -9 -8 -8 -7 -7 -7 -7 -7 ---------- Run | Scr Mat Min Exi Min Mat Sto Fac Low Low Zio Dee Machines Disabled 11 | . 1 . . . . 2 1 2 . 5 . Max in Single Turn 3 | . 1 . . . . 1 1 1 . 3 . Machines Sabotaged . | . . . . . . . . . . . . Garrisons Compromised . | . . . . . . . . . . . . Overloaded Fab Kills . | . . . . . . . . . . . . Fab Network Shutdowns . | . . . . . . . . . . . . Hacking | -11 -10 -10 -10 -9 -8 -8 -7 -7 -7 -7 -7 --------- Run | Scr Mat Min Exi Min Mat Sto Fac Low Low Zio Dee Machines Accessed 32 | . 10 . 4 . 3 9 6 . . . . Terminals 21 | . 8 . . . 3 7 3 . . . . Fabricators . | . . . . . . . . . . . . Repair Stations 3 | . 1 . . . . 1 1 . . . . Recycling Units 3 | . 1 . . . . 1 1 . . . . Scanalyzers 1 | . . . . . . . 1 . . . . Garrison Access . | . . . . . . . . . . . . Total Hacks 127 | . 38 . 27 . 8 36 18 . . . . Successful 91 | . 21 . 27 . 5 25 13 . . . . Failed 36 | . 17 . . . 3 11 5 . . . . Catastrophic 4 | . 2 . . . . 2 . . . . . Database Lockouts . | . . . . . . . . . . . . Manual 76 | . 25 . 1 . 6 24 10 1 . 9 . Terminals 74 | . 32 . . . 8 26 8 . . . . Fabricators . | . . . . . . . . . . . . Repair Stations 10 | . 3 . . . . 5 2 . . . . Recycling Units 10 | . 3 . . . . 5 2 . . . . Scanalyzers 6 | . . . . . . . 6 . . . . Garrison Access . | . . . . . . . . . . . . Terminal Hacks 49 | . 11 . 27 . 1 10 . . . . . Record 26 | . . . 26 . . . . . . . . Robot Analysis 2 | . 1 . . . 1 . . . . . . Prototype ID Bank 4 | . 3 . . . . 1 . . . . . Branch Access Points 2 | . 1 . . . . 1 . . . . . Terminal Index 2 | . 1 . . . . 1 . . . . . Alert Level 1 | . . . . . . 1 . . . . . Locate Traps 3 | . 2 . . . . 1 . . . . . Disarm Traps 1 | . 1 . . . . . . . . . . Hauler Manifests 1 | . . . . . . 1 . . . . . Zone Layout 6 | . 2 . . . . 4 . . . . . EX-Prototype ID Bank 1 | . . . 1 . . . . . . . . Fabricator Hacks . | . . . . . . . . . . . . Repair Station Hacks 9 | . 3 . . . . 4 2 . . . . Scan Component 5 | . 2 . . . . 2 1 . . . . Repair 4 | . 1 . . . . 2 1 . . . . Recycling Unit Hacks 1 | . . . . . . 1 . . . . . Retrieve Matter 1 | . . . . . . 1 . . . . . Scanalyzer 6 | . . . . . . . 6 . . . . Insert Component 3 | . . . . . . . 3 . . . . Analyze 3 | . . . . . . . 3 . . . . Garrison Access Hacks . | . . . . . . . . . . . . Unauthorized Hacks 26 | . 7 . . . 4 10 5 . . . . Terminals 19 | . 6 . . . 4 6 3 . . . . Track 6 | . 2 . . . 1 2 1 . . . . Assimilate 1 | . . . . . . 1 . . . . . Botnet 11 | . 3 . . . 3 3 2 . . . . Operators 1 | . 1 . . . . . . . . . . Fabricators . | . . . . . . . . . . . . Repair Stations . | . . . . . . . . . . . . Recycling Units 7 | . 1 . . . . 4 2 . . . . Monitor 1 | . . . . . . 1 . . . . . Reject 3 | . 1 . . . . 1 1 . . . . Recyclers 1 | . . . . . . 1 . . . . . Mask 2 | . . . . . . 1 1 . . . . Scanalyzers . | . . . . . . . . . . . . Garrison Access . | . . . . . . . . . . . . Data Cores Recovered . | . . . . . . . . . . . . Used . | . . . . . . . . . . . . Hacking Detections 28 | . 10 . . . 3 9 6 . . . . Full Trace Events 4 | . 3 . . . . 1 . . . . . Feedback Events . | . . . . . . . . . . . . Feedback Blocked . | . . . . . . . . . . . . Robot Schematics Acquired . | . . . . . . . . . . . . Robots Built . | . . . . . . . . . . . . Matter . | . . . . . . . . . . . . Time . | . . . . . . . . . . . . Total Robot Build Rating . | . . . . . . . . . . . . Part Schematics Acquired 3 | . . . . . . . 3 . . . . Parts Built . | . . . . . . . . . . . . Matter . | . . . . . . . . . . . . Time . | . . . . . . . . . . . . Total Part Build Rating . | . . . . . . . . . . . . Parts Repaired 4 | . 1 . . . . 2 1 . . . . Time 156 | . 32 . . . . 64 60 . . . . Parts Recycled . | . . . . . . . . . . . . Recycled Matter . | . . . . . . . . . . . . Retrieved Matter . | . . . . . . . . . . . . Retrieved Components . | . . . . . . . . . . . . Parts Scanalyzed 3 | . . . . . . . 3 . . . . Part Schematics Acquired 3 | . . . . . . . 3 . . . . Parts Damaged . | . . . . . . . . . . . . Bothacking | -11 -10 -10 -10 -9 -8 -8 -7 -7 -7 -7 -7 ------------ Run | Scr Mat Min Exi Min Mat Sto Fac Low Low Zio Dee Used RIF Installer . | . . . . . . . . . . . . Robots Hacked . | . . . . . . . . . . . . Non-combat . | . . . . . . . . . . . . Combat . | . . . . . . . . . . . . Robot Hacks Applied . | . . . . . . . . . . . . Relay Couplers Released . | . . . . . . . . . . . . Robots Rewired . | . . . . . . . . . . . . Allies Hacked . | . . . . . . . . . . . . Hacks Repelled . | . . . . . . . . . . . . Allies | -11 -10 -10 -10 -9 -8 -8 -7 -7 -7 -7 -7 -------- Run | Scr Mat Min Exi Min Mat Sto Fac Low Low Zio Dee Total Allies 18 | . . . . 5 . 13 . . . . . Largest Group 12 | . . . . 3 . 12 1 . . . . Highest-Rated Group 288 | . . . . 40 . 288 99 . . . . Highest-Rated Ally 99 | . . . . 31 . 99 99 . . . . Total Orders 1 | . . . . . . 1 . . . . . STAY 1 | . . . . . . 1 . . . . . Ally Attacks 19 | . . . . 5 . 14 . . . . . Total Damage 424 | . . . . 74 . 350 . . . . . Kills 2 | . . . . . . 2 . . . . . Allies Corrupted . | . . . . . . . . . . . . Allies Melted . | . . . . . . . . . . . . Intel | -11 -10 -10 -10 -9 -8 -8 -7 -7 -7 -7 -7 ------- Run | Scr Mat Min Exi Min Mat Sto Fac Low Low Zio Dee Robot Analysis Total 2 | . 1 . . . 1 . . . . . . Derelict Logs Recovered 3 | . . . . 1 . . . . . 2 . Drone Launches . | . . . . . . . . . . . . Drone Recoveries . | . . . . . . . . . . . . Exploration | -11 -10 -10 -10 -9 -8 -8 -7 -7 -7 -7 -7 ------------- Run | Scr Mat Min Exi Min Mat Sto Fac Low Low Zio Dee Turns Passed 13396 | 26 1268 235 611 271 501 2445 2046 474 1053 3922 544 Spaces Moved 6290 | 12 735 166 494 171 189 814 1012 213 533 1634 317 Core 2 | . . . . . . . . . . . 2 Treads 2224 | . 9 2 . 15 11 13 606 213 533 822 . Legs 1127 | . . . . . . . . . . 812 315 Wheels 2937 | 12 726 164 494 156 178 801 406 . . . . Hover . | . . . . . . . . . . . . Flight . | . . . . . . . . . . . . Fastest Speed 50 | 100 100 120 120 140 150 150 130 190 190 140 50 Average Speed 156 | 100 111 120 121 147 161 153 166 190 190 170 169 Slowest Speed 270 | 100 180 180 140 220 240 250 270 190 190 190 230 Overloaded Moves . | . . . . . . . . . . . . Propulsion Burnouts . | . . . . . . . . . . . . Robots Hopped . | . . . . . . . . . . . . Cave-ins Triggered . | . . . . . . . . . . . . Exploration Rate (%) 54 | 3 97 50 92 56 18 77 15 41 68 91 47 Regions Visited 11 Branch Regions 8 Pre-discovered Areas 2 | . . . . . . 1 . . . 1 . Known Exits Taken 7 | . 1 . . . 1 1 1 1 1 1 . Unknown Exits Taken 4 | 1 . 1 1 1 . . . . . . . Scrap Searched 10 | . . 1 . 2 . . . . 3 4 . Spaces Dug 56 | . 12 . . . 3 12 20 . 9 . . Terrain Destroyed 93 | . 12 . . 1 22 14 20 10 9 5 . Melee 42 | . 1 . . . . 12 20 . 9 . . Projectile 19 | . 11 . . 1 3 2 . 2 . . . AOE 32 | . . . . . 19 . . 8 . 5 . Terrain Rammed . | . . . . . . . . . . . . Walls Destroyed . | . . . . . . . . . . . . Machines Disabled . | . . . . . . . . . . . . Actions | -11 -10 -10 -10 -9 -8 -8 -7 -7 -7 -7 -7 --------- Run | Scr Mat Min Exi Min Mat Sto Fac Low Low Zio Dee Total 9074 | 19 1062 187 506 189 328 1903 1258 273 558 2468 323 Wait 1857 | . 188 7 . 4 74 949 110 34 10 481 . Move 6279 | 11 734 165 493 170 188 813 1011 212 532 1633 317 Hop . | . . . . . . . . . . . . Pick Up 127 | . 26 1 4 8 13 16 17 2 4 36 . Fast Attach 25 | 1 . . . . 1 4 . . . 18 1 Attach 55 | . 5 1 . . 10 5 8 3 . 21 2 Detach 17 | . 1 . . . 2 1 1 3 . 9 . Swap 219 | 2 30 3 2 1 13 52 48 11 1 54 2 Drop 116 | 2 19 2 7 4 2 17 10 4 2 46 1 Fire 309 | 3 57 8 . 2 25 29 23 3 . 159 . Melee 69 | . 2 . . . . 16 30 1 9 11 . Ram . | . . . . . . . . . . . . Kick . | . . . . . . . . . . . . Crush 1 | . . . . . . 1 . . . . . Escape Stasis . | . . . . . . . . . . . . Rewire . | . . . . . . . . . . . . Trap . | . . . . . . . . . . . . Miscellaneous . | . . . . . . . . . . . . Route ------- -11/Scrapyard -10/Materials (discovered 5 exits: [*Mat x3] / *Min x2) -10/Mines (discovered 2 exits: [*Mat] / *Exi) -10/Exiles (discovered 2 exits: [*Min x2]) -9/Mines -8/Materials -8/Storage (discovered 2 exits: *Fac / Rec) -7/Factory -7/Lower Caves -7/Lower Caves (discovered 2 exits: *Fac / *Zio) -7/Zion (discovered 2 exits: *Dee / *Pro) -7/Deep Caves History --------- Turn | Location | Event 14 | -11/Scrapyard | Discovered new exit (range 3) 27 | -11/Scrapyard | Entered Materials 304 | -10/Materials | Build established: Mutant 443 | -10/Materials | Discovered new exit (range 10) 603 | -10/Materials | Discovered new exit (range 14) 712 | -10/Materials | Repaired Imp. Treads 961 | -10/Materials | Discovered new exit (range 3) 1105 | -10/Materials | Discovered new exit (range 6) 1130 | -10/Materials | Identified exit to Mines 1295 | -10/Materials | Entered Mines 1367 | -10/Mines | A weapon hastily lodged in a ceiling crevice suddenly fell to the ground 1426 | -10/Mines | Discovered new exit (range 7) 1525 | -10/Mines | Deemed a non-threat by the Exiles lab entrance 1525 | -10/Mines | Discovered new exit (range 5) 1530 | -10/Mines | Entered Exiles 1547 | -10/Exiles | Discovered new exit (range 15) 1564 | -10/Exiles | Met 8R-AWN 1583 | -10/Exiles | Met EX-HEX 1618 | -10/Exiles | Met EX-BIN 1637 | -10/Exiles | Aligned with FarCom system 1638 | -10/Exiles | Given EX-Vault access code 1691 | -10/Exiles | Opened EX-Vault 1700 | -10/Exiles | Found Latent Energy Streamer 1728 | -10/Exiles | Warned to stay clear of 0b10 Research branches 1765 | -10/Exiles | Met EX-DEC 1821 | -10/Exiles | Visited The Gauntlet 2126 | -10/Exiles | Discovered new exit (range 14) 2141 | -10/Exiles | Left Exiles lab with Latent Energy Streamer 2141 | -10/Exiles | Entered Mines 2189 | -9/Mines | Learned Materials security intel 2189 | -9/Mines | Assisted by bots powering up and referring to "LRC-V3" 2191 | -9/Mines | Assembled infested the area 2196 | -9/Mines | Assisted by a Guerilla fighting off Assembled 2287 | -9/Mines | Found a damaged Exp. Sensor Array with a note attached 2292 | -9/Mines | Found Prototype Device 2312 | -9/Mines | Received a Rocket Launcher from a helpful Derelict 2371 | -9/Mines | Build established: Hauler-Mutant 2394 | -9/Mines | Discovered new exit (range 7) 2412 | -9/Mines | Entered Materials 2412 | -8/Materials | Evolved 4 slots: Utility x4 2641 | -8/Materials | Discovered new exit (range 10) 2656 | -8/Materials | Identified exit to Storage 2913 | -8/Materials | Entered Storage 3047 | -8/Storage | Learned location of Armory (-4) 3393 | -8/Storage | Identified exit to Recycling 3395 | -8/Storage | Assisted by bots powering up and referring to "LRC-V3" 3731 | -8/Storage | Build established: Commander-Mutant 3855 | -8/Storage | Repaired Imp. Treads 3888 | -8/Storage | Repaired EMP Blaster 5027 | -8/Storage | Met 01-MTF 5304 | -8/Storage | Discovered new exit (range 16) 5355 | -8/Storage | Identified exit to Factory 5358 | -8/Storage | Entered Factory 5358 | -7/Factory | Accompanied by 1 ally (01-MTF) 5358 | -7/Factory | Evolved 2 slots: Propulsion x1, Utility x1 5363 | -7/Factory | 01-MTF left 5824 | -7/Factory | Repaired Hvy. EM Shotgun? 5990 | -7/Factory | Build established: Hauler-Mutant 6149 | -7/Factory | Lost 3 parts (1p2n) 6260 | -7/Factory | Identified Exp. Sensor Array 6561 | -7/Factory | Build established: Hauler-Assassin 7362 | -7/Factory | Discovered new exit (range 6) 7368 | -7/Factory | Identified exit to Lower Caves 7404 | -7/Factory | Entered Lower Caves 7467 | -7/Lower Caves | Acquired the password to a Derelict Tinkerer's latest research 7488 | -7/Lower Caves | Found Prototype Special Weapon 7529 | -7/Lower Caves | Identified Molecular Deconstructor 7814 | -7/Lower Caves | Build established: Hauler-Skirmisher 7869 | -7/Lower Caves | Discovered new exit (range 6) 7876 | -7/Lower Caves | Identified exit to Lower Caves 7878 | -7/Lower Caves | Entered another Lower Caves area 8145 | -7/Lower Caves | Discovered new exit (range 7) 8154 | -7/Lower Caves | Identified exit to Factory 8214 | -7/Lower Caves | Build established: Hauler-Assassin 8910 | -7/Lower Caves | Discovered new exit (range 12) 8929 | -7/Lower Caves | Identified exit to Zion 8931 | -7/Lower Caves | Entered Zion 9021 | -7/Zion | Discovered new exit (range 10) 9038 | -7/Zion | Identified exit to Proximity Caves 9730 | -7/Zion | Found Prototype Device 9763 | -7/Zion | Acquired unknown access codes intercepted by a Zionite 9852 | -7/Zion | Rebuked by Imprinter 9888 | -7/Zion | Attempted to imprint without authorization 9888 | -7/Zion | Attacked by Zionites 10129 | -7/Zion | Destroyed Imprinter 10179 | -7/Zion | Extracted access codes from Imprinter's data core 10208 | -7/Zion | Build established: Hauler-Mutant 10338 | -7/Zion | Learned 8 Factory zone layouts 10582 | -7/Zion | Build established: Scavenger-Mutant 10656 | -7/Zion | Lost 3 parts (1p2w) 10851 | -7/Zion | Lost 3 parts (1n1u1w) 10863 | -7/Zion | Spotted ZC-68A(B) 11199 | -7/Zion | Core integrity fell below 50% 11210 | -7/Zion | Identified Phasing AFG 11283 | -7/Zion | Opened final containment barrier to the Deep Caves 11307 | -7/Zion | Discovered new exit (range 3) 11307 | -7/Zion | Saw the warning signs outside the Deep Caves entrance 11308 | -7/Zion | Identified exit to Deep Caves 11777 | -7/Zion | Build established: Scavenger-Skirmisher 12336 | -7/Zion | Build established: Scavenger-Mutant 12429 | -7/Zion | Lost 3 parts (1p1n1u) 12487 | -7/Zion | Core integrity fell below 20% 12853 | -7/Zion | Entered Deep Caves 13368 | -7/Deep Caves | Z-Facility disabled 13395 | -7/Deep Caves | Released all parts (6) 13397 | -7/Deep Caves | Destroyed by N8-G1N(z) with Zionite Laser-S Last Messages --------------- [Achievement: Signs Are For Wimps] LOCATION=DEEP CAVES GOAL=ESCAPE 12915_ Mak. System Restoration Module purges 1% of system corruption (0%). 13340_ AQ-E78(o) is busy at the terminal. 13368_ Adv. Signal Interpreter destroyed. 13368_ Z-Facility disabled. 13372_ Mak. Leg destroyed. 13372_ Exp. Sensor Array destroyed. 13377_ Maneuvering Thrusters destroyed. 13384_ Mak. Power Source destroyed. 13389_ Mak. Leg destroyed. 13395_ Released Reactive Plating. 13395_ Released Mak. Axe. 13395_ Released Hcp. Storage Unit. 13395_ Released Lrg. Storage Unit. 13395_ Released Adv. Targeting Computer. 13395_ Released Phasing Sabre. 13395_ Dropped Mak. System Restoration Module. 13396_ Acquired Mak. Axe. Map ----- +----------------------------------------------------+ | ?????????????????????????????????????????????????? | | ??????????????????????????????????????############ | | ???????????????????????????????????#### | | ??????????????????????????????????## | | ?????????????????????????????????## | | ????????????????????????????????## | | ??????????????????????????????# | | ??????????????????????????? | | ??????????????????????? | | ????????????????????? | | ???????????????????? | | ????????????????? """"" """""" | | ??????????????? """""""""""""" | | ?????????????# """""""""""""" | | ????????????? """""""""""""" | | ????????????# "????"""""" | | ?????????????# ""????????"""" | | ????????????## ""????????"""" | | ????????????# ""??????????"" | | ?????????????# """?????????"" | | ?????????????# """?????????? | | ??????????# # ""?????????? | | ?????????# ! """?????????? | | ?????????# !!!]/ """??????????? | | ?????????# !!!!] """??????????? | | ??????????# ! @! """"?????????? | | ????????????# !!! """"?????????? | | ????????????# """""????????? | | ????????????## """""???????? | | ?????????????# """"""??????? | | ?????????????## """""" ??????" | | ??????????????# """" "????"" | | ??????????????# """" """"""" | | ??????????????# """" """"" | | ????????????? """" """ | | ????????????? """ | | ????????????? """"""""""" | | ??????????????? """"""""" | | ???????????????? zz | | ????????????????? z | | ?????????????????? | | ??????????????????? | | ???????????????????? | | ????????????????????? | | ?????????????????????? | | ??????????????????????? ### ### | | ??????????????????????????# ??## # | | ??????????????????????????####???### ##### | | ???????????????????????????????????###########???? | | ?????????????????????????????????????????????????? | +----------------------------------------------------+ Best States ------------- Heat Dissipation 48 Coolant Potential 50 Energy Generation 18 Energy Capacity 590 Matter Stores 300 Matter Capacity 300 Sight Range 16 Robot Scan Range 30 Terrain Scan Range 18 Terrain Scan Density 135 ECM Strength 2 Cloak Strength 3 Armor Coverage 600 Resistance: KI 20 Weapon Shielding 66 Evasion (%) 40 Targeting Accuracy 8 Recoil Reduction 3 Offensive Hacking 11 Defensive Hacking 11 Item Schematics ----------------- Exp. Sensor Array | -7/Factory | Scanalyzed Lgt. Angular Momentum Engine | -7/Factory | Scanalyzed System Backup Module | -7/Factory | Scanalyzed Robot Schematics ------------------ None Fabricated ------------ Nothing Alien Tech Used ----------------- None Achievements -------------- Deconstruction Monster Signs Are For Wimps Slippery One Challenges ------------ None Game ------ Seed BeamDecoyWarhead Manual? 0 Play Time 04:30:38 Cumulative 102.3 hours Start 2020.12.05 @ 14:09:11 End 2020.12.07 @ 08:04:23 Sessions 7 Manual Loads 0 Difficulty Rogue Special Mode Halloween2020/ForbiddenLore Game No. 41 Rogue 38 Adventurer 0 Explorer 3 Win Type - Total 1 Types 1/0/0/0/0/0/0/0/0 Lore% 41 Gallery% 55 Achievement% 38 Wizard Run 0 Options --------- ASCII 0 Keyboard 0 Movement Numpad Keybinds 0 Fullscreen 2 Font 16/Dina Map View 76x50 Tactical HUD 1 Map Filters NONE Filters NONE Steam 1 RUN: b2c8f21c-5bd6-4c7c-b1ae-27c5fb23d755